bitfinex/quotes_SOLUSD_20250307
["timestamp","ask_amount","ask_price","bid_price","bid_amount"]
[1741311122901,0.033,139.76,139.75,137.8]
[1741311123201,0.033,139.76,139.75,138.08432314]
[1741311123606,0.033,139.76,139.75,137.8]
[1741311123798,0.033,139.76,139.73,219.9]
[1741311123998,0.033,139.76,139.7,219.9]
[1741311124376,0.033,139.76,139.7,82.1]
[1741311124598,0.033,139.76,139.69,449.8]
[1741311124795,0.033,139.76,139.69,137.8]
[1741311124981,18.64964886,139.75,139.67,292.7]
[1741311125294,18.64964886,139.75,139.65,219.9]
[1741311125295,7.5139,139.74,139.65,219.9]
[1741311125487,2.1468,139.74,139.67,44.96905697]
[1741311125691,20.79634886,139.75,139.67,44.96905697]
[1741311125889,26.16304886,139.75,139.65,219.9]
[1741311126082,26.16304886,139.75,139.65,82.1]
[1741311126282,36.89644886,139.75,139.62,264.89905697]
[1741311126476,36.89644886,139.75,139.62,219.93]
[1741311126673,36.89644886,139.75,139.62,264.89905697]
[1741311126898,26.16304886,139.75,139.64,44.96905697]
[1741311127095,26.16304886,139.75,139.67,0.14216157]
[1741311127299,26.16304886,139.75,139.67,137.8]
[1741311127499,20.79634886,139.75,139.67,137.8]
[1741311127700,20.79634886,139.75,139.67,494.76905697]
[1741311128003,20.79634886,139.75,139.67,449.8]
[1741311128408,17.61728646,139.76,139.69,0.14216157]
[1741311128586,11.15638646,139.76,139.71,0.14216157]
[1741311128779,11.15638646,139.76,139.72,44.96905697]
[1741311128978,11.15638646,139.76,139.72,182.76905697]
[1741311129390,11.15638646,139.76,139.73,52.40968011]
[1741311129701,11.15638646,139.76,139.75,45.11121854]
[1741311129904,11.15638646,139.76,139.75,0.14216157]
[1741311130088,11.15638646,139.76,139.74,0.14216157]
[1741311130407,11.15638646,139.76,139.74,45.11121854]
[1741311130708,11.15638646,139.76,139.75,0.14216157]
[1741311130906,11.15638646,139.76,139.75,265.15338011]
[1741311131211,0.033,139.76,139.75,265.15338011]
[1741311131405,0.033,139.84,139.76,0.14216157]
[1741311131609,0.033,139.84,139.81,44.96905697]
[1741311131910,0.033,139.84,139.81,137.8]
[1741311132292,0.033,139.84,139.81,182.76905697]
[1741311132488,0.033,139.84,139.81,137.8]
[1741311133006,0.033,139.84,139.81,182.76905697]
[1741311133390,0.033,139.84,139.81,137.8]
[1741311134200,0.033,139.84,139.8,10.72]
[1741311134915,0.033,139.84,139.75,193.48905697]
[1741311135099,0.033,139.84,139.78,44.96905697]
[1741311135294,0.033,139.84,139.79,0.14216157]
[1741311135510,0.033,139.84,139.78,137.8]
[1741311135911,0.033,139.84,139.79,45.25338011]
[1741311136121,0.033,139.84,139.81,0.14216157]
[1741311136316,0.033,139.84,139.81,137.94216157]
[1741311136948,0.033,139.84,139.76,264.86905697]
[1741311137106,0.033,139.84,139.77,0.14216157]
[1741311137300,0.033,139.84,139.79,44.96905697]
[1741311137504,0.033,139.84,139.79,189.92235697]
[1741311138011,0.033,139.84,139.79,264.86905697]
[1741311138191,0.033,139.84,139.79,219.9]
[1741311138411,0.033,139.84,139.76,0.28432314]
[1741311138720,0.033,139.84,139.76,265.15338011]
[1741311138899,0.033,139.84,139.78,44.96905697]
[1741311139311,0.033,139.84,139.79,44.96905697]
[1741311139529,0.033,139.84,139.79,182.76905697]
[1741311139943,0.033,139.84,139.79,189.92255697]
[1741311140151,0.033,139.84,139.79,182.76905697]
[1741311140565,0.033,139.84,139.79,137.8]
[1741311140768,0.033,139.84,139.79,144.9535]
[1741311140941,0.033,139.84,139.8,312.14216157]
[1741311141445,0.033,139.84,139.8,312.0]
[1741311142462,0.033,139.84,139.8,531.9]
[1741311143059,0.033,139.84,139.81,45.11121854]
[1741311143266,0.033,139.84,139.77,219.9]
[1741311143469,0.033,139.84,139.78,45.25338011]
[1741311143639,0.033,139.84,139.82,0.14216157]
[1741311143829,0.033,139.84,139.82,265.01121854]
[1741311144055,0.033,139.84,139.82,219.9]
[1741311144261,0.033,139.84,139.79,44.96905697]
[1741311144455,0.033,139.84,139.79,219.9]
[1741311144959,0.033,139.84,139.75,249.76796597]
[1741311145146,0.033,139.84,139.76,29.86796597]
[1741311145645,0.033,139.84,139.78,30.15228911]
[1741311145849,18.68264886,139.84,139.78,219.9]
[1741311146235,18.68264886,139.84,139.78,312.0]
[1741311146624,0.033,139.84,139.78,341.86796597]
[1741311146824,0.033,139.84,139.79,0.14216157]
[1741311147848,18.64964886,139.82,139.71,137.8]
[1741311148044,0.14216157,139.81,139.69,137.8]
[1741311148252,20.64964886,139.78,139.68,82.1]
[1741311148555,20.64964886,139.78,139.64,137.8]
[1741311148556,18.64964886,139.75,139.64,137.8]
[1741311148720,18.64964886,139.75,139.64,167.66796597]
[1741311148924,18.64964886,139.75,139.65,29.86796597]
[1741311149550,18.64964886,139.75,139.65,0.14216157]
[1741311149747,18.64964886,139.75,139.65,30.01012754]
[1741311150056,18.64964886,139.75,139.64,178.36796597]
[1741311150057,18.64964886,139.73,139.64,178.36796597]
[1741311150424,2.1468,139.74,139.66,29.86796597]
[1741311150630,2.1468,139.74,139.67,0.28432314]
[1741311150839,2.1468,139.74,139.68,312.0]
[1741311151150,18.64964886,139.73,139.68,449.8]
[1741311151449,18.64964886,139.73,139.64,148.5]
[1741311151757,7.5149,139.72,139.64,10.7]
[1741311151953,7.5149,139.72,139.63,137.8]
[1741311152260,18.64964886,139.71,139.62,219.93]
[1741311152759,18.64964886,139.71,139.62,0.03]
[1741311153245,20.64964886,139.71,139.62,0.03]
[1741311153557,1.5618,139.68,139.62,0.03]
[1741311153760,18.64964886,139.67,139.62,0.03]
[1741311153925,2.148,139.66,139.62,0.03]
[1741311154647,3.7096,139.68,139.62,0.03]
[1741311154946,20.79734886,139.69,139.62,137.83]
[1741311155733,2.1477,139.69,139.63,0.14216157]
[1741311155965,6.5741,139.7,139.63,265.05316318]
[1741311156147,2.1474,139.71,139.63,265.05316318]
[1741311156760,1.5066,139.73,139.63,265.05316318]
[1741311156967,22.30334886,139.73,139.65,0.14216157]
[1741311157153,22.30334886,139.73,139.66,0.14216157]
[1741311157354,18.64964886,139.72,139.66,137.8]
[1741311157761,18.64964886,139.72,139.66,449.8]
[1741311157953,2.1473,139.71,139.66,449.8]
[1741311158351,18.64964886,139.7,139.63,82.1]
[1741311158662,18.64964886,139.7,139.62,0.03]
[1741311159374,18.64964886,139.7,139.62,0.17216157]
[1741311159552,18.64964886,139.7,139.62,0.03]
[1741311160061,2.1476,139.69,139.62,0.03]
[1741311161045,2.1476,139.69,139.62,0.17216157]
[1741311161471,2.1476,139.69,139.62,312.17216157]
[1741311161669,18.64964886,139.68,139.62,312.03]
[1741311161881,18.64964886,139.68,139.62,0.03]
[1741311162455,18.64964886,139.66,139.62,0.03]
[1741311162754,18.64964886,139.64,139.62,0.03]
[1741311162955,2.1485,139.63,139.55,144.9657]
[1741311163163,24.31860213,139.64,139.56,45.01100161]
[1741311163468,20.79764886,139.66,139.59,0.14216157]
[1741311163668,1.6335,139.69,139.6,0.14216157]
[1741311163861,18.64964886,139.68,139.61,0.14216157]
[1741311164249,1.6335,139.69,139.61,0.28432314]
[1741311164574,20.79744886,139.68,139.6,137.8]
[1741311164759,20.79744886,139.68,139.6,449.8]
[1741311165156,26.16684886,139.68,139.6,449.8]
[1741311165359,20.79744886,139.68,139.6,189.83204004]
[1741311165567,20.79744886,139.68,139.6,137.8]
[1741311165770,26.16684886,139.68,139.6,137.8]
[1741311166785,18.64964886,139.66,139.58,137.8]
[1741311166946,18.64964886,139.66,139.57,82.1]
[1741311167147,18.64964886,139.64,139.53,219.93]
[1741311167455,18.64964886,139.62,139.53,82.13]
[1741311167661,18.64964886,139.62,139.54,0.14216157]
[1741311167965,18.64964886,139.64,139.54,264.91100161]
[1741311168170,18.64964886,139.64,139.55,0.14216157]
[1741311168470,18.64964886,139.64,139.55,312.0]
[1741311168975,18.64964886,139.65,139.56,7.30746157]
[1741311169175,2.148,139.66,139.59,0.14216157]
[1741311169478,2.148,139.66,139.59,219.9]
[1741311170255,2.1479,139.67,139.6,0.28432314]
[1741311170463,2.033,139.76,139.64,0.14216157]
[1741311170464,7.25954497,139.73,139.64,0.14216157]
[1741311170670,3.56429955,139.75,139.67,45.15316318]
[1741311170884,0.033,139.76,139.69,0.14216157]
[1741311170885,3.67843691,139.76,139.69,0.14216157]
[1741311171064,5.82503691,139.76,139.69,7.30076157]
[1741311171264,18.64964886,139.75,139.67,230.58]
[1741311172297,18.64964886,139.75,139.65,137.8]
[1741311173075,18.64964886,139.73,139.66,0.14216157]
[1741311173574,18.64964886,139.73,139.65,137.8]
[1741311173776,18.64964886,139.73,139.66,0.14216157]
[1741311173976,18.64964886,139.73,139.66,45.01100161]
[1741311174186,18.64964886,139.73,139.65,182.66884004]
[1741311174406,18.64964886,139.73,139.65,137.8]
[1741311174987,20.79624886,139.75,139.65,137.8]
[1741311175185,26.16294886,139.75,139.66,312.0]
[1741311175504,3.67843691,139.76,139.69,0.14216157]
[1741311175505,2.1795,139.76,139.69,0.14216157]
[1741311175881,18.64964886,139.75,139.66,576.76884004]
[1741311176079,18.64964886,139.75,139.66,82.1]
[1741311176888,18.64964886,139.75,139.66,219.9]
[1741311177107,18.64964886,139.73,139.66,219.9]
[1741311177601,18.64964886,139.73,139.66,82.1]
[1741311177796,7.5139,139.74,139.66,82.1]
[1741311178102,18.64964886,139.73,139.66,219.9]
[1741311178314,18.64964886,139.73,139.66,82.1]
[1741311178475,0.14216157,139.72,139.61,88.1207]
[1741311178679,25.00534886,139.71,139.61,82.1]
[1741311178978,18.64964886,139.72,139.62,357.15316318]
[1741311179182,2.1473,139.71,139.65,0.14216157]
[1741311179406,2.1473,139.71,139.65,219.9]
[1741311179704,7.5155,139.71,139.65,219.9]
[1741311180013,7.5155,139.71,139.59,219.9]
[1741311180208,18.64964886,139.69,139.59,82.1]
[1741311180417,18.64964886,139.67,139.58,137.8]
[1741311180702,18.64964886,139.65,139.53,137.83]
[1741311180910,18.64964886,139.63,139.53,0.03]
[1741311181087,18.64964886,139.58,139.53,0.03]
[1741311181289,24.67344886,139.58,139.48,0.03]
[1741311182204,28.2810691,139.58,139.48,0.03]
[1741311182621,28.2810691,139.58,139.48,312.03]
[1741311183206,18.64964886,139.56,139.48,312.03]
[1741311183593,18.64964886,139.56,139.48,0.03]
[1741311184309,0.14216157,139.55,139.48,0.03]
[1741311184916,18.64964886,139.56,139.48,0.03]
[1741311185281,20.79904886,139.57,139.48,0.03]
[1741311187317,18.64964886,139.57,139.48,394.13]
[1741311187519,18.64964886,139.57,139.48,0.03]
[1741311187684,20.79904886,139.57,139.48,0.03]
[1741311187890,0.14216157,139.56,139.48,0.03]
[1741311188108,18.64964886,139.55,139.48,0.03]
[1741311189288,18.64964886,139.53,139.48,0.03]
[1741311189488,24.3631233,139.53,139.48,0.03]
[1741311189688,18.64964886,139.51,139.48,0.03]
[1741311189916,18.64964886,139.51,139.46,0.03]
[1741311190125,2.0,139.48,139.46,0.03]
[1741311190426,99.71686079,139.47,139.46,0.03]
[1741311191195,83.21801193,139.49,139.46,0.03]
[1741311191492,18.64964886,139.48,139.46,0.03]
[1741311192307,83.21801193,139.49,139.46,0.03]
[1741311192508,18.79181043,139.48,139.47,0.03]
[1741311192711,18.79181043,139.48,139.46,0.03]
[1741311192909,99.71686079,139.48,139.4,0.03]
[1741311193415,2.151,139.47,139.4,0.03]
[1741311193611,99.71686079,139.48,139.4,0.03]
[1741311194208,101.86766079,139.48,139.4,0.03]
[1741311194997,107.24476079,139.48,139.4,0.03]
[1741311195215,18.64964886,139.46,139.4,0.03]
[1741311195514,18.64964886,139.44,139.4,0.03]
[1741311196131,6.569,139.41,139.31,6.6302]
[1741311196427,18.64964886,139.4,139.29,221.5322]
[1741311196603,18.64964886,139.4,139.31,45.01100161]
[1741311197219,6.569,139.41,139.31,0.28432314]
[1741311197220,18.64964886,139.41,139.31,0.28432314]
[1741311197400,1.6036,139.42,139.33,45.15316318]
[1741311197601,18.64964886,139.44,139.35,44.86884004]
[1741311198013,18.64964886,139.44,139.36,0.14216157]
[1741311198197,18.64964886,139.44,139.35,137.8]
[1741311198403,18.64964886,139.44,139.36,312.0]
[1741311198998,18.64964886,139.44,139.36,45.15316318]
[1741311199313,18.64964886,139.42,139.34,7.1766]
[1741311199627,22.29767993,139.44,139.35,45.01100161]
[1741311200004,22.29767993,139.44,139.34,52.04544004]
[1741311200213,22.29767993,139.44,139.33,219.9]
[1741311200817,22.29767993,139.44,139.31,137.8]
[1741311200999,22.29767993,139.44,139.31,182.66884004]
[1741311201204,22.29767993,139.44,139.31,137.8]
[1741311201416,18.64964886,139.42,139.32,44.86884004]
[1741311201619,18.64964886,139.42,139.33,44.86884004]
[1741311201813,18.64964886,139.42,139.34,0.14216157]
[1741311202009,18.64964886,139.42,139.33,137.8]
[1741311202212,10.78216157,139.41,139.3,0.03]
[1741311202629,18.64964886,139.39,139.3,0.03]
[1741311202937,0.14216157,139.36,139.3,0.03]
[1741311203110,18.64964886,139.34,139.3,0.03]
[1741311203422,18.64964886,139.32,139.3,0.03]
[1741311203809,8.2432,139.35,139.3,0.03]
[1741311204011,18.64964886,139.34,139.3,0.03]
[1741311204234,2.1525,139.37,139.3,0.03]
[1741311204417,18.64964886,139.37,139.3,0.03]
[1741311204598,81.06721193,139.36,139.25,0.03]
[1741311204803,0.14216157,139.28,139.16,0.03]
[1741311205025,18.64964886,139.26,139.16,0.03]
[1741311205401,2.1543,139.25,139.16,0.03]
[1741311205604,5.83005295,139.26,139.17,182.69884004]
[1741311205800,18.64964886,139.32,139.18,45.15316318]
[1741311206032,0.14216157,139.31,139.18,182.81100161]
[1741311206215,0.14216157,139.28,139.17,0.03]
[1741311206413,5.7990733,139.28,139.17,0.03]
[1741311207433,0.14216157,139.25,139.17,0.03]
[1741311207641,18.64964886,139.22,139.17,0.03]
[1741311207821,0.14216157,139.21,139.17,0.03]
[1741311208941,0.14216157,139.21,139.09,312.0]
[1741311209112,0.14216157,139.18,139.09,312.0]
[1741311209313,18.64964886,139.19,139.09,312.0]
[1741311209625,18.64964886,139.17,139.09,312.0]
[1741311211349,18.64964886,139.17,139.07,6.0811]
[1741311211525,18.64964886,139.15,139.07,6.0811]
[1741311212418,0.14216157,139.14,139.04,1.62]
[1741311212612,18.64964886,139.12,139.02,137.8]
[1741311212920,0.14216157,139.11,138.99,0.03]
[1741311213116,0.14216157,139.08,138.99,0.03]
[1741311213517,18.64964886,139.06,138.99,0.03]
[1741311214128,18.64964886,139.06,138.99,312.03]
[1741311214358,7.86178729,139.08,138.99,449.83]
[1741311214523,18.64964886,139.11,139.0,0.28432314]
[1741311214853,18.64964886,139.11,139.0,138.08432314]
[1741311215342,24.47009631,139.11,139.0,138.08432314]
[1741311215529,26.62659631,139.11,139.0,137.94216157]
[1741311215850,0.14216157,139.1,139.0,137.8]
[1741311216812,32.01799631,139.11,139.0,137.8]
[1741311217012,32.01799631,139.11,139.01,0.14216157]
[1741311217237,26.62659631,139.11,139.01,0.14216157]
[1741311217442,26.62659631,139.11,139.01,0.28432314]
[1741311217832,32.01799631,139.11,139.0,137.83]
[1741311218041,0.14216157,139.1,139.0,137.83]
[1741311218347,26.62659631,139.11,139.01,312.0]
[1741311218545,24.47009631,139.11,139.02,0.28432314]
[1741311218918,26.62659631,139.11,139.0,0.03]
[1741311219127,0.14216157,139.1,139.0,0.03]
[1741311219546,2.1568,139.09,139.0,0.03]
[1741311220545,2.1568,139.09,139.0,0.17216157]
[1741311220734,2.1568,139.09,139.0,0.03]
[1741311220918,0.14216157,139.08,139.0,0.03]
[1741311221448,7.5489,139.09,139.0,0.03]
[1741311221652,18.64964886,139.09,139.0,0.03]
[1741311221833,18.64964886,139.09,139.0,312.03]
[1741311222550,18.64964886,139.09,139.0,0.17216157]
[1741311222847,18.64964886,139.09,139.0,0.03]
[1741311223445,18.64964886,139.09,139.0,0.17216157]
[1741311223625,18.64964886,139.07,138.97,0.03]
[1741311223829,18.79181043,139.05,138.91,226.4962]
[1741311224029,18.64964886,139.03,138.91,226.4962]
[1741311224728,2.1579,139.02,138.92,0.28432314]
[1741311225047,2.1579,139.02,138.92,138.08432314]
[1741311225254,2.1579,139.02,138.92,137.8]
[1741311225432,18.79181043,139.01,138.92,312.0]
[1741311225635,81.06721193,139.0,138.91,0.03]
[1741311225831,110.49902236,138.99,138.9,2.1371076]
[1741311226849,18.64964886,138.97,138.9,2.1371076]
[1741311227630,10.64,138.99,138.91,0.14216157]
[1741311227838,12.7984,138.99,138.9,2.1371076]
[1741311228551,2.1584,138.99,138.89,0.14216157]
[1741311228852,2.1584,138.99,138.91,312.0]
[1741311229555,31.44784886,139.01,138.92,0.14216157]
[1741311230972,31.44784886,139.01,138.92,145.28262314]
[1741311230973,29.28964886,139.01,138.92,145.28262314]
[1741311231184,29.28964886,139.01,138.92,138.08432314]
[1741311231344,31.44784886,139.01,138.92,138.08432314]
[1741311231548,18.64964886,139.01,138.92,145.28262314]
[1741311232479,18.64964886,139.01,138.92,457.28262314]
[1741311232980,2.1572,139.07,138.96,0.28432314]
[1741311233281,18.64964886,139.06,138.97,10.64]
[1741311234975,2.1574,139.05,138.97,10.64]
[1741311235475,18.64964886,139.04,138.97,10.64]
[1741311236061,18.64964886,139.04,138.97,322.64]
[1741311236655,18.64964886,139.04,138.97,312.0]
[1741311237175,3.57014063,139.06,138.97,312.0]
[1741311237390,26.20074886,139.05,138.94,10.62]
[1741311237681,2.1574,139.05,138.95,10.90432314]
[1741311238361,2.1574,139.05,138.95,148.70432314]
[1741311238564,20.80704886,139.05,138.95,137.8]
[1741311238768,18.64964886,139.04,138.94,17.8172]
[1741311238959,2.1574,139.05,138.94,17.8172]
[1741311239360,2.1574,139.05,138.95,30.5177301]
[1741311239580,3.51749007,139.07,138.99,0.28432314]
[1741311239876,2.1562,139.13,139.03,0.14216157]
[1741311240183,2.1562,139.13,139.04,0.14216157]
[1741311240484,5.87147697,139.13,139.06,0.14216157]
[1741311240659,18.64964886,139.12,139.05,312.0]
[1741311240975,2.1561,139.14,139.05,312.0]
[1741311241178,2.1561,139.14,139.05,319.1913]
[1741311241367,18.64964886,139.13,139.05,312.0]
[1741311242186,24.52310426,139.13,139.05,312.0]
[1741311242570,9.99282458,139.15,139.06,0.28432314]
[1741311242873,0.033,139.16,139.08,0.28432314]
[1741311243075,18.79181043,139.15,139.04,0.14216157]
[1741311243246,2.1561,139.14,139.05,0.28432314]
[1741311243448,0.033,139.16,139.11,0.28432314]
[1741311243677,0.033,139.16,139.11,139.64312314]
[1741311243860,0.033,139.16,139.14,45.27035396]
[1741311244061,0.033,139.16,139.14,137.8]
[1741311244267,0.033,139.16,139.14,82.1]
[1741311244982,0.033,139.16,139.11,82.1]
[1741311245192,2.1887,139.16,139.05,238.5455]
[1741311245359,18.64964886,139.15,139.05,99.1878]
[1741311245555,18.64964886,139.15,139.05,92.72]
[1741311245955,0.14216157,139.14,139.05,10.62]
[1741311246375,0.14216157,139.14,139.03,531.9]
[1741311247087,0.14216157,139.11,138.99,10.6]
[1741311247387,18.79181043,139.09,138.99,10.6]
[1741311247680,18.79181043,139.07,138.96,137.8]
[1741311247879,18.79181043,139.07,138.95,219.9]
[1741311248081,18.64964886,139.07,138.96,45.5546771]
[1741311248379,18.64964886,139.09,138.96,240.34442421]
[1741311248690,18.64964886,139.09,139.02,0.28432314]
[1741311248856,18.64964886,139.09,139.02,148.68432314]
[1741311249052,18.64964886,139.09,139.02,148.4]
[1741311249265,18.64964886,139.07,138.99,137.8]
[1741311249479,18.64964886,139.07,138.98,0.14216157]
[1741311249480,18.64964886,139.07,138.98,148.4]
[1741311249781,18.64964886,139.07,138.98,113.33729613]
[1741311249989,18.64964886,139.07,138.98,432.53249613]
[1741311250288,20.80644886,139.09,138.99,45.5546771]
[1741311250459,20.80644886,139.09,138.98,425.33729613]
[1741311250795,0.033,139.16,139.04,0.14216157]
[1741311251088,0.033,139.16,139.07,0.14216157]
[1741311251269,3.59274204,139.16,139.09,45.41251553]
[1741311251474,0.033,139.16,139.13,0.14216157]
[1741311251665,0.033,139.16,139.13,0.28432314]
[1741311251987,0.033,139.16,139.13,0.14216157]
[1741311252162,0.033,139.16,139.12,0.14216157]
[1741311252356,0.033,139.16,139.09,113.33729613]
[1741311252658,0.033,139.16,139.08,0.28432314]
[1741311252858,0.033,139.16,139.06,82.1]
[1741311253165,0.033,139.13,139.05,137.8]
[1741311253404,0.033,139.13,139.09,0.14216157]
[1741311253563,0.033,139.13,139.12,45.5546771]
[1741311253889,0.033,139.13,139.12,577.4546771]
[1741311254092,0.033,139.13,139.12,532.18432314]
[1741311254307,0.033,139.13,139.12,219.9]
[1741311254463,0.033,139.13,139.12,265.4546771]
[1741311254880,0.033,139.13,139.12,284.10432596]
[1741311255057,0.033,139.16,139.13,18.933972]
[1741311255269,0.033,139.16,139.15,52.7410771]
[1741311255607,0.033,139.16,139.15,220.18432314]
[1741311255815,0.033,139.16,139.15,272.6410771]
[1741311256105,0.033,139.19,139.16,20.933972]
[1741311256305,0.033,139.19,139.18,45.5546771]
[1741311256604,0.033,139.3,139.2,18.933972]
[1741311256792,0.033,139.3,139.24,0.28432314]
[1741311257104,0.033,139.3,139.24,312.28432314]
[1741311257275,0.033,139.3,139.23,137.8]
[1741311257479,18.68264886,139.3,139.23,137.8]
[1741311257812,18.68264886,139.3,139.21,0.28432314]
[1741311257979,18.68264886,139.3,139.21,137.8]
[1741311258302,18.68264886,139.3,139.22,0.28432314]
[1741311258682,0.033,139.3,139.25,0.28432314]
[1741311258882,0.033,139.3,139.25,138.08432314]
[1741311259088,0.033,139.3,139.25,183.3546771]
[1741311259288,0.033,139.3,139.29,45.5546771]
[1741311259606,0.033,139.3,139.29,290.16992596]
[1741311260277,0.033,139.3,139.29,602.16992596]
[1741311261316,2.1517,139.43,139.31,0.28432314]
[1741311261611,0.033,139.44,139.37,45.27035396]
[1741311261808,0.033,139.44,139.39,45.27035396]
[1741311262408,0.033,139.44,139.38,47.06042112]
[1741311262605,0.033,139.44,139.4,0.28432314]
[1741311262808,0.033,139.44,139.43,45.5546771]
[1741311263115,0.033,139.44,139.43,183.3546771]
[1741311263321,0.033,139.44,139.43,138.08432314]
[1741311264022,0.033,139.44,139.4,137.8]
[1741311264338,0.033,139.44,139.37,375.48]
[1741311264520,18.68264886,139.44,139.34,226.0696]
[1741311264708,18.68264886,139.44,139.34,143.9696]
[1741311265021,0.14216157,139.43,139.31,219.9]
[1741311265223,0.14216157,139.41,139.29,137.8]
[1741311265405,26.32351043,139.41,139.27,137.8]
[1741311265721,37.08311043,139.41,139.27,137.8]
[1741311266102,37.08311043,139.41,139.28,0.28432314]
[1741311266508,37.08311043,139.41,139.27,137.8]
[1741311266860,37.08311043,139.41,139.3,45.27035396]
[1741311266861,26.18134886,139.41,139.3,45.27035396]
[1741311266999,26.18134886,139.41,139.31,45.5546771]
[1741311267504,2.1519,139.41,139.33,45.5546771]
[1741311267705,2.1519,139.41,139.33,532.18432314]
[1741311267894,7.5317,139.41,139.33,219.9]
[1741311268113,7.5317,139.41,139.29,137.8]
[1741311268114,18.2913,139.41,139.29,137.8]
[1741311268296,0.14216157,139.4,139.29,219.9]
[1741311268514,0.14216157,139.38,139.29,219.9]
[1741311268823,0.14216157,139.38,139.24,8.0658]
[1741311268824,0.14216157,139.38,139.25,0.28432314]
[1741311269025,0.14216157,139.38,139.25,220.18432314]
[1741311269198,0.14216157,139.38,139.25,219.9]
[1741311269399,18.64964886,139.36,139.25,219.9]
[1741311269607,18.64964886,139.36,139.26,0.28432314]
[1741311269925,18.64964886,139.36,139.26,0.14216157]
[1741311270426,18.64964886,139.36,139.26,0.28432314]
[1741311270897,18.64964886,139.36,139.26,312.28432314]
[1741311271723,2.1528,139.35,139.28,45.5546771]
[1741311271900,2.1522,139.39,139.31,0.28432314]
[1741311272213,3.57297063,139.41,139.34,0.28432314]
[1741311272412,2.1516,139.43,139.34,138.08432314]
[1741311272724,2.1516,139.43,139.37,0.14216157]
[1741311272925,2.1516,139.43,139.37,138.08432314]
[1741311273108,2.1516,139.43,139.37,137.8]
[1741311273421,2.1516,139.43,139.33,51.84245396]
[1741311273422,18.64964886,139.42,139.34,0.28432314]
[1741311273611,20.80124886,139.43,139.34,220.18432314]
[1741311273800,20.80124886,139.43,139.34,265.4546771]
[1741311274000,20.80124886,139.43,139.34,220.18432314]
[1741311274219,26.18024886,139.43,139.34,220.18432314]
[1741311274898,26.18024886,139.43,139.34,532.18432314]
[1741311275320,26.18024886,139.43,139.34,219.9]
[1741311275503,0.14216157,139.42,139.34,219.9]
[1741311275709,18.64964886,139.4,139.3,230.46]
[1741311276037,18.64964886,139.38,139.29,219.9]
[1741311277135,0.14216157,139.37,139.28,0.03]
[1741311277346,18.79181043,139.35,139.28,0.03]
[1741311277506,29.33181043,139.35,139.28,0.03]
[1741311277842,18.64964886,139.33,139.28,0.03]
[1741311278012,7.5355,139.34,139.28,0.03]
[1741311278217,2.153,139.34,139.28,0.03]
[1741311278604,18.64964886,139.33,139.28,0.03]
[1741311279131,2.1526,139.36,139.29,0.28432314]
[1741311279305,20.80224886,139.36,139.29,138.08432314]
[1741311279501,15.9533,139.4,139.29,220.18432314]
[1741311279705,0.033,139.4,139.31,0.28432314]
[1741311279927,0.033,139.4,139.31,220.18432314]
[1741311280236,2.1522,139.39,139.31,220.18432314]
[1741311280426,18.64964886,139.38,139.31,220.18432314]
[1741311280607,18.64964886,139.38,139.31,82.1]
[1741311280806,18.64964886,139.38,139.29,0.14216157]
[1741311281139,18.64964886,139.38,139.28,219.93]
[1741311281436,18.64964886,139.38,139.28,82.13]
[1741311281633,7.5338,139.37,139.29,0.28432314]
[1741311281805,18.64964886,139.36,139.29,0.28432314]
[1741311282223,2.1525,139.37,139.29,357.5546771]
[1741311282613,2.1525,139.37,139.29,312.28432314]
[1741311282809,2.1525,139.37,139.31,0.28432314]
[1741311283638,2.1523,139.38,139.31,220.18432314]
[1741311284425,7.5332,139.38,139.31,220.18432314]
[1741311284624,18.64964886,139.37,139.29,219.9]
[1741311284808,18.64964886,139.37,139.29,82.1]
[1741311285842,2.1526,139.36,139.3,0.28432314]